bitfinex-derivatives/quotes_SOLF0:USTF0_20250331
["timestamp","ask_amount","ask_price","bid_price","bid_amount"]
[1743421251657,8.086,123.68,123.67,0.05910809]
[1743421252056,12.22167677,123.68,123.67,0.05910809]
[1743421252446,8.086,123.68,123.67,0.05910809]
[1743421257363,47.49469701,123.68,123.67,0.05910809]
[1743421258361,51.63087686,123.68,123.67,0.05910809]
[1743421262760,34.05617985,123.68,123.67,0.05910809]
[1743421263064,4.13617985,123.68,123.67,0.05910809]
[1743421263564,2.012,123.69,123.67,0.05910809]
[1743421263764,8.086,123.68,123.67,0.05910809]
[1743421264563,10.0977,123.69,123.67,0.05910809]
[1743421264965,10.0977,123.69,123.67,8.14570809]
[1743421265665,8.13967074,123.7,123.68,8.086]
[1743421266557,0.05477074,123.7,123.69,17.57399701]
[1743421266759,0.05477074,123.7,123.69,9.48869701]
[1743421267062,8.0853,123.69,123.67,17.6340051]
[1743421267373,0.05477074,123.7,123.67,0.05910809]
[1743421267663,0.05477074,123.7,123.68,9.48869701]
[1743421268066,0.05477074,123.7,123.69,8.0853]
[1743421268265,0.05477074,123.7,123.69,17.57399701]
[1743421272576,29.92,123.75,123.72,8.0828]
[1743421272873,29.92,123.75,123.72,17.57149701]
[1743421273068,4.13535251,123.74,123.72,17.57149701]
[1743421273465,29.92,123.75,123.72,17.57149701]
[1743421273773,8.0821,123.74,123.72,17.63252364]
[1743421273973,39.46635372,123.75,123.72,0.06102663]
[1743421274381,8.0827,123.73,123.72,0.06102663]
[1743421275876,8.0824,123.74,123.72,8.14442663]
[1743421276469,38.05945671,123.75,123.72,0.06102663]
[1743421276975,4.13754693,123.74,123.72,8.14402663]
[1743421277174,4.13754693,123.74,123.72,0.06102663]
[1743421277572,38.05945671,123.75,123.73,8.0827]
[1743421277772,8.13945671,123.75,123.73,8.0827]
[1743421278680,0.05765671,123.75,123.74,17.57079701]
[1743421290387,0.05765671,123.75,123.73,17.57109701]
[1743421290984,0.05765671,123.75,123.74,8.0821]
[1743421291689,0.05765671,123.75,123.74,17.57079701]
[1743421294683,0.05765671,123.75,123.72,9.54972364]
[1743421294885,0.05765671,123.75,123.72,0.06102663]
[1743421295090,8.0825,123.74,123.72,0.06102663]
[1743421295297,0.05765671,123.75,123.72,0.06102663]
[1743421295590,8.0823,123.74,123.72,0.06102663]
[1743421295795,0.05765671,123.75,123.72,0.06102663]
[1743421295991,9.54635372,123.75,123.72,0.06102663]
[1743421296292,8.0827,123.73,123.72,0.06102663]
[1743421299694,8.0847,123.7,123.67,17.57499701]
[1743421299890,9.48869701,123.72,123.67,9.48869701]
[1743421300486,8.0844,123.71,123.68,8.0856]
[1743421300685,8.0844,123.71,123.68,17.57429701]
[1743421300898,8.14254231,123.71,123.68,17.63229083]
[1743421302199,9.54683932,123.71,123.68,0.05799382]
[1743421302699,8.085,123.7,123.68,0.05799382]
[1743421303496,8.14254231,123.71,123.68,8.14389382]
[1743421303697,8.14254231,123.71,123.68,17.63259083]
[1743421304799,8.0847,123.7,123.68,9.54669083]
[1743421305099,8.0847,123.7,123.68,0.05799382]
[1743421305399,8.14254231,123.71,123.68,8.14379382]
[1743421305589,0.05814231,123.71,123.68,0.05799382]
[1743421306097,8.085,123.7,123.68,0.05799382]
[1743421307602,9.48869701,123.69,123.68,0.05799382]
[1743421308003,17.57399701,123.69,123.68,0.05799382]
[1743421308198,8.0853,123.69,123.68,0.05799382]
[1743421310805,37.965,123.7,123.68,0.05799382]
[1743421310995,29.88,123.7,123.68,0.05799382]
[1743421311405,8.0853,123.69,123.68,0.05799382]
[1743421320610,0.05814231,123.71,123.68,9.54669083]
[1743421321312,0.05814231,123.71,123.69,8.0848]
[1743421321915,0.05814231,123.71,123.68,9.54669083]
[1743421323416,0.05814231,123.71,123.69,8.0853]
[1743421323716,0.05814231,123.71,123.68,9.54669083]
[1743421324218,0.05814231,123.71,123.7,8.0847]
[1743421325315,0.05814231,123.71,123.69,8.0849]
[1743421326217,0.05814231,123.71,123.69,8.0853]
[1743421326620,0.05814231,123.71,123.68,9.54669083]
[1743421326812,0.05814231,123.71,123.7,8.0847]
[1743421328120,0.05814231,123.71,123.69,8.0849]
[1743421330013,0.05814231,123.71,123.68,9.54669083]
[1743421330512,0.05814231,123.71,123.69,8.0853]
[1743421330716,0.05814231,123.71,123.68,9.54669083]
[1743421330915,0.05814231,123.71,123.69,9.48869701]
[1743421331221,0.05814231,123.71,123.7,17.57339701]
[1743421341124,0.05814231,123.71,123.69,17.57359701]
[1743421341522,0.05814231,123.71,123.69,9.48869701]
[1743421341922,0.05814231,123.71,123.7,8.0847]
[1743421342214,0.05814231,123.71,123.7,17.57339701]
[1743421345817,9.48869701,123.77,123.74,8.0818]
[1743421346015,2.0792,123.78,123.73,9.48869701]
[1743421346225,4.14429119,123.76,123.74,9.48869701]
[1743421346925,4.14429119,123.75,123.74,17.57079701]
[1743421347123,4.14429119,123.75,123.74,17.62421105]
[1743421347326,0.06106592,123.76,123.74,9.54211105]
[1743421348120,0.06106592,123.76,123.75,8.0814]
[1743421348421,4.15682766,123.76,123.75,8.0814]
[1743421352019,0.06106592,123.76,123.75,8.0814]
[1743421359039,0.06106592,123.76,123.75,17.57009701]
[1743421359637,0.06106592,123.76,123.75,8.0814]
[1743421371553,0.06106592,123.76,123.74,0.05341404]
[1743421372851,8.0814,123.75,123.74,0.05341404]
[1743421373051,0.06106592,123.76,123.74,0.05341404]
[1743421373551,8.14216592,123.76,123.74,0.05341404]
[1743421374155,8.14216592,123.76,123.74,8.13541404]
[1743421374355,0.06106592,123.76,123.74,8.13541404]
[1743421375257,8.14186592,123.76,123.74,8.13541404]
[1743421375752,0.06106592,123.76,123.75,8.0814]
[1743421376356,4.16185651,123.76,123.75,8.0814]
[1743421377150,0.06106592,123.76,123.75,8.0814]
[1743421377659,0.06106592,123.76,123.75,17.57009701]
[1743421383861,53.97356701,123.86,123.75,17.56869701]
[1743421384071,8.0753,123.85,123.81,9.48869701]
[1743421384262,8.0753,123.85,123.83,8.0762]
[1743421384560,4.10203457,123.84,123.83,8.0762]
[1743421385060,0.05786742,123.85,123.82,9.5505215]
[1743421385454,0.05786742,123.85,123.82,17.6270215]
[1743421385762,8.0756,123.84,123.82,8.13832449]
[1743421385951,0.05786742,123.85,123.83,8.0762]
[1743421386154,0.05786742,123.85,123.82,0.06182449]
[1743421386562,0.05786742,123.85,123.82,8.13832449]
[1743421387165,8.13316742,123.85,123.82,8.13832449]
[1743421387455,8.13316742,123.85,123.83,8.0762]
[1743421388055,8.13316742,123.85,123.82,17.6270215]
[1743421389265,8.0757,123.84,123.82,17.6270215]
[1743421389456,9.48869701,123.84,123.82,0.06182449]
[1743421390761,8.0762,123.83,123.82,0.06182449]
[1743421391962,17.56459701,123.84,123.82,0.06182449]
[1743421392462,8.0759,123.84,123.82,0.06182449]
[1743421393559,17.56459701,123.84,123.82,0.06182449]
[1743421394060,8.0762,123.83,123.82,0.06182449]
[1743421394666,17.56459701,123.84,123.82,0.06182449]
[1743421395164,8.0759,123.84,123.82,8.13862449]
[1743421395562,8.0762,123.83,123.82,0.06182449]
[1743421397865,17.56459701,123.84,123.82,0.06182449]
[1743421398370,8.0759,123.84,123.82,0.06182449]
[1743421398674,8.13286742,123.85,123.82,0.06182449]
[1743421398867,0.05786742,123.85,123.82,0.06182449]
[1743421399072,0.05786742,123.85,123.84,8.0755]
[1743421399566,0.05786742,123.85,123.84,17.56419701]
[1743421402773,0.05786742,123.85,123.84,8.0755]
[1743421404075,0.05786742,123.85,123.84,17.56419701]
[1743421406178,317.8754175,123.97,123.84,71.48869701]
[1743421406377,9.48869701,123.93,123.88,9.48869701]
[1743421406675,8.0706,123.92,123.9,8.0713]
[1743421406875,8.0706,123.92,123.88,9.48869701]
[1743421407174,0.05247536,123.91,123.89,8.13217837]
[1743421407976,0.05247536,123.91,123.9,8.0716]
[1743421408977,0.05247536,123.91,123.89,8.13217837]
[1743421409477,0.05247536,123.91,123.89,0.06027837]
[1743421409674,0.05247536,123.91,123.9,8.0716]
[1743421410074,0.05247536,123.91,123.89,0.06027837]
[1743421410276,8.12367536,123.91,123.89,0.06027837]
[1743421410881,0.05247536,123.91,123.89,8.13207837]
[1743421411383,8.12357536,123.91,123.89,8.13207837]
[1743421412083,0.05247536,123.91,123.89,8.13207837]
[1743421412284,0.05247536,123.91,123.89,0.06027837]
[1743421412583,9.54117237,123.91,123.89,0.06027837]
[1743421413485,17.61267237,123.91,123.89,0.06027837]
[1743421413783,17.61267237,123.91,123.89,8.13247837]
[1743421413983,8.0716,123.9,123.89,0.06027837]
[1743421414180,9.54117237,123.91,123.89,0.06027837]
[1743421414376,0.05247536,123.91,123.89,0.06027837]
[1743421414784,9.48869701,123.9,123.89,0.06027837]
[1743421415284,17.56029701,123.9,123.89,0.06027837]
[1743421417486,8.0716,123.9,123.89,0.06027837]
[1743421420592,8.12367536,123.91,123.89,0.06027837]
[1743421420981,8.12367536,123.91,123.89,8.13227837]
[1743421425592,0.05247536,123.91,123.9,8.0716]
[1743421426093,0.05247536,123.91,123.89,0.06027837]
[1743421427390,8.12357536,123.91,123.89,0.06027837]
[1743421427690,0.05247536,123.91,123.89,9.54897538]
[1743421428088,0.05247536,123.91,123.89,0.06027837]
[1743421428291,0.05247536,123.91,123.89,8.13227837]
[1743421428893,8.12367536,123.91,123.89,8.13227837]
[1743421431796,0.05247536,123.91,123.9,8.0716]
[1743421431998,0.05247536,123.91,123.89,0.06027837]
[1743421432385,8.0716,123.9,123.89,0.06027837]
[1743421436698,8.12367536,123.91,123.89,0.06027837]
[1743421437096,0.05247536,123.91,123.89,0.06027837]
[1743421437303,0.05247536,123.91,123.9,8.0716]
[1743421437502,0.05247536,123.91,123.89,0.06027837]
[1743421438000,8.12347536,123.91,123.89,8.13217837]
[1743421438204,0.05247536,123.91,123.89,0.06027837]
[1743421438403,8.0716,123.9,123.89,0.06027837]
[1743421444411,8.12387536,123.91,123.89,8.13257837]
[1743421445608,8.0716,123.9,123.89,0.06027837]
[1743421446108,12.17936174,123.9,123.89,0.06027837]
[1743421446611,4.10776174,123.9,123.89,8.13257837]
[1743421447705,0.05247536,123.91,123.9,8.0716]
[1743421447909,9.48869701,123.97,123.9,9.48869701]
[1743421448111,8.0693,123.94,123.91,9.48869701]
[1743421448408,9.48869701,123.96,123.92,8.0699]
[1743421449109,9.48869701,123.96,123.93,0.05383475]
[1743421449310,8.0674,123.97,123.93,0.05383475]
[1743421449311,9.48869701,123.95,123.93,0.05383475]
[1743421449512,9.48869701,123.94,123.93,0.05383475]
[1743421450714,9.48869701,123.95,123.93,0.05383475]
[1743421452009,9.48869701,123.95,123.93,8.12353475]
[1743421452714,9.48869701,123.95,123.94,8.069]
[1743421453013,9.48869701,123.95,123.93,0.05383475]
[1743421453714,9.48869701,123.96,123.94,8.069]
[1743421453913,9.48869701,123.97,123.93,0.05383475]
[1743421454807,29.8,123.98,123.93,0.05383475]
[1743421455012,9.48869701,123.94,123.93,0.05383475]
[1743421455213,9.48869701,123.95,123.93,8.12303475]
[1743421455508,9.48869701,123.96,123.93,0.05383475]
[1743421456012,9.48869701,123.96,123.94,8.0688]
[1743421457717,17.55639701,123.96,123.94,8.0688]
[1743421459211,8.0677,123.96,123.94,8.0688]
[1743421459412,9.48869701,123.97,123.94,8.0688]
[1743421459808,8.068,123.96,123.94,8.0688]
[1743421460421,8.068,123.96,123.93,8.12313475]
[1743421461324,8.0684,123.95,123.93,8.12313475]
[1743421463418,8.0681,123.96,123.93,8.12313475]
[1743421463723,8.0681,123.96,123.94,8.0689]
[1743421463926,8.0681,123.96,123.93,0.05383475]
[1743421464324,8.0684,123.95,123.93,8.12323475]
[1743421465625,8.0681,123.96,123.93,8.12323475]
[1743421466024,9.48869701,123.96,123.93,8.12323475]
[1743421466428,8.0684,123.95,123.93,8.12323475]
[1743421467329,9.48869701,123.94,123.93,0.05383475]
[1743421467827,17.55769701,123.94,123.93,0.05383475]
[1743421487734,8.0707,123.92,123.9,9.48869701]
[1743421487935,9.48869701,123.93,123.89,9.48869701]
[1743421488532,8.0707,123.92,123.9,8.0715]
[1743421488935,8.12378847,123.92,123.9,8.1249123]
[1743421497045,8.071,123.91,123.9,8.1250123]
[1743421497549,8.12368847,123.92,123.9,8.1250123]
[1743421500446,8.071,123.91,123.9,0.0534123]
[1743421503849,0.05308847,123.92,123.9,0.0534123]
[1743421504446,0.05308847,123.92,123.9,17.61330931]
[1743421505047,0.05308847,123.92,123.91,8.071]
[1743421508354,8.12338847,123.92,123.9,17.61340931]
[1743421508554,8.12338847,123.92,123.9,8.1247123]
[1743421510256,8.12338847,123.92,123.91,8.071]
[1743421512458,0.05308847,123.92,123.91,8.071]
[1743421514460,16.1308,124.0,123.95,8.0682]
[1743421514661,39.24869701,123.98,123.95,8.0682]
[1743421515061,8.0673,123.97,123.95,8.0684]
[1743421515262,29.76,123.98,123.94,9.48869701]
[1743421515457,6.2571,123.99,123.94,9.48869701]
[1743421515657,29.76,124.0,123.97,8.0671]
[1743421515861,9.48869701,124.0,123.95,9.54762786]
[1743421516155,8.0662,123.99,123.96,8.12321614]
[1743421516762,9.48869701,124.0,123.96,0.05591614]
[1743421516951,9.48869701,123.99,123.96,0.05591614]
[1743421517356,8.0667,123.98,123.96,0.05591614]
[1743421523862,8.0671,123.97,123.96,0.05591614]
[1743421525860,17.55579701,123.97,123.96,0.05591614]
[1743421526260,8.0691,123.94,123.91,9.48869701]
[1743421526462,9.48869701,123.96,123.92,8.0701]
[1743421526662,8.0688,123.95,123.92,8.0701]
[1743421527265,8.12314585,123.95,123.93,8.0696]
[1743421527863,0.05434585,123.95,123.93,8.0696]
[1743421528167,0.05434585,123.95,123.92,9.5490096]
[1743421528359,0.05434585,123.95,123.93,9.48869701]
[1743421529267,8.12284585,123.95,123.93,9.48869701]
[1743421529569,8.12284585,123.95,123.93,17.55809701]
[1743421529764,8.12284585,123.95,123.93,9.48869701]
[1743421529972,8.0691,123.94,123.92,9.5490096]
[1743421530169,8.0691,123.94,123.92,0.06031259]
[1743421530569,8.12304585,123.95,123.92,0.06031259]
[1743421531565,8.12304585,123.95,123.92,8.13021259]
[1743421531972,8.12304585,123.95,123.93,8.0697]
[1743421532561,0.05434585,123.95,123.94,8.069]
[1743421532766,0.05434585,123.95,123.94,17.55769701]
[1743421533865,39.22869701,124.0,123.96,8.0673]
[1743421534067,8.0661,123.99,123.96,8.0673]
[1743421534277,8.0661,123.99,123.95,9.48869701]
[1743421534570,8.0661,123.99,123.96,8.0676]
[1743421534967,8.08707956,123.99,123.96,8.12899113]
[1743421535165,8.08707956,123.99,123.96,0.06139113]
[1743421535369,9.48869701,123.98,123.96,0.06139113]
[1743421535567,9.48869701,123.98,123.96,8.12909113]
[1743421536071,17.55549701,123.98,123.96,0.06139113]
[1743421536271,9.48869701,123.98,123.96,0.06139113]
[1743421536870,8.0671,123.97,123.96,0.06139113]
[1743421537975,8.0667,123.98,123.96,0.06139113]
[1743421539274,9.50967657,123.99,123.96,0.06139113]
[1743421539671,8.067,123.98,123.96,0.06139113]
[1743421540074,9.50967657,123.99,123.96,0.06139113]
[1743421541077,8.0669,123.98,123.96,0.06139113]
[1743421542678,17.57577657,123.99,123.96,8.12879113]
[1743421543674,8.08707956,123.99,123.96,8.12879113]
[1743421544082,8.08707956,123.99,123.97,8.0671]
[1743421546087,8.08707956,123.99,123.96,8.12869113]
[1743421548087,8.08707956,123.99,123.97,8.067]
[1743421553691,8.08707956,123.99,123.96,8.12869113]
[1743421554191,8.08707956,123.99,123.96,0.06139113]
[1743421555795,8.08707956,123.99,123.96,8.12889113]
[1743421555993,8.0666,123.98,123.96,8.12889113]
[1743421556198,9.48869701,123.98,123.96,0.06139113]
[1743421556395,9.48869701,123.97,123.96,0.06139113]
[1743421556690,17.55579701,123.97,123.96,0.06139113]
[1743421560396,8.0671,123.97,123.96,0.06139113]
[1743421561792,8.0668,123.98,123.96,0.06139113]
[1743421562591,8.0668,123.98,123.96,8.12889113]
[1743421564094,0.02097956,123.99,123.96,0.06139113]
[1743421564299,8.08697956,123.99,123.97,8.0671]
[1743421564898,8.08697956,123.99,123.96,8.12869113]
[1743421570202,8.08697956,123.99,123.97,8.067]
[1743421571507,8.08697956,123.99,123.96,8.12869113]
[1743421575211,8.0664,123.98,123.96,8.12869113]
[1743421576313,8.08717956,123.99,123.96,8.12869113]
[1743421576705,0.02097956,123.99,123.96,9.55008814]
[1743421577507,0.02097956,123.99,123.97,8.0667]
[1743421578708,0.02097956,123.99,123.98,17.55509701]
[1743421580512,0.02097956,123.99,123.98,47.27509701]
[1743421580707,39.20869701,124.04,124.01,8.0641]
[1743421581104,9.48869701,124.04,123.99,9.48869701]
[1743421581510,8.0635,124.03,123.99,9.48869701]
[1743421581710,8.0635,124.03,124.0,8.12683797]
[1743421582111,8.0639,124.02,124.0,8.12683797]
[1743421586318,8.0635,124.03,124.0,8.12683797]
[1743421587022,8.0635,124.03,124.01,8.0644]
[1743421587312,44.48487,124.12,124.02,319.92]
[1743421587513,53.97356701,124.12,124.07,9.48869701]
[1743421587713,8.0581,124.11,124.07,39.18869701]
[1743421587909,9.48869701,124.1,124.06,0.05461571]
[1743421588107,9.48869701,124.08,124.06,0.05461571]
[1743421589211,9.48869701,124.07,124.06,0.05461571]
[1743421591327,39.18869701,124.08,124.06,0.05461571]
[1743421591529,29.7,124.08,124.06,0.05461571]
[1743421591824,9.48869701,124.09,124.06,0.05461571]
[1743421592226,9.48869701,124.09,124.06,8.11531571]
[1743421592930,11.54629701,124.1,124.06,0.05461571]
[1743421593129,2.0576,124.1,124.06,9.54331272]
[1743421593826,2.0576,124.1,124.08,8.0596]
[1743421595527,4.3216,124.11,124.08,9.48869701]
[1743421596732,9.48869701,124.13,124.08,9.48869701]
[1743421596930,9.48869701,124.13,124.09,9.48869701]
[1743421597129,39.16869701,124.14,124.09,9.54301297]
[1743421597327,39.16869701,124.14,124.11,8.0578]
[1743421598233,35.977,124.15,124.13,8.0567]
[1743421598725,35.977,124.15,124.13,8.11736767]
[1743421599122,6.297,124.15,124.14,8.056]
[1743421599421,9.48869701,124.16,124.13,0.06066767]
[1743421599625,9.48869701,124.15,124.13,0.06066767]
[1743421601733,41.29379701,124.15,124.13,0.06066767]
[1743421602734,49.34959701,124.15,124.13,0.06066767]
[1743421603029,9.48869701,124.14,124.08,9.48869701]
[1743421603229,17.54559701,124.13,124.08,9.48869701]
[1743421603432,17.54559701,124.13,124.09,8.0589]
[1743421604332,0.05902211,124.12,124.1,0.05565868]
[1743421609235,0.05902211,124.12,124.1,8.11415868]
[1743421609435,8.11632211,124.12,124.1,8.11415868]
[1743421609634,8.11632211,124.12,124.1,0.05565868]
[1743421610743,0.05902211,124.12,124.1,8.11395868]
[1743421611948,0.05902211,124.12,124.11,8.058]
[1743421612642,0.05902211,124.12,124.1,8.11395868]
[1743421614447,0.05902211,124.12,124.11,8.058]
[1743421615450,0.05902211,124.12,124.1,8.11385868]
[1743421617850,8.11632211,124.12,124.1,8.11385868]
[1743421618051,0.05902211,124.12,124.1,0.05565868]
[1743421618248,8.058,124.11,124.1,0.05565868]
[1743421622251,17.54669701,124.11,124.1,0.05565868]
[1743421622559,9.48869701,124.11,124.04,9.48869701]
[1743421622750,9.48869701,124.08,124.04,9.48869701]
[1743421622950,8.0609,124.07,124.04,17.55109701]
[1743421623658,8.11919809,124.07,124.04,17.61165312]
[1743421624956,8.11919809,124.07,124.04,8.12295611]
[1743421625356,8.0613,124.06,124.04,8.12295611]
[1743421626259,8.11919809,124.07,124.05,8.0615]
[1743421627060,8.11919809,124.07,124.04,17.61135312]
[1743421627456,8.0613,124.06,124.04,17.61135312]
[1743421628056,9.5469951,124.07,124.04,0.06055611]
[1743421629052,0.05829809,124.07,124.04,8.12265611]
[1743421629250,0.05829809,124.07,124.04,0.06055611]
[1743421629866,9.5469951,124.07,124.04,0.06055611]
[1743421630160,8.0619,124.05,124.04,0.06055611]
[1743421643273,8.0616,124.06,124.04,17.61175312]
[1743421643471,8.0616,124.06,124.04,8.12305611]
[1743421644572,0.05829809,124.07,124.05,9.48869701]
[1743421645169,0.05829809,124.07,124.06,8.0612]
[1743421645870,0.05829809,124.07,124.04,0.06055611]
[1743421646474,8.0617,124.06,124.04,0.06055611]
[1743421647277,39.2069951,124.07,124.04,0.06055611]
[1743421648271,9.48869701,124.06,124.04,0.06055611]
[1743421648475,9.48869701,124.05,123.98,299.48869701]
[1743421648673,9.48869701,124.03,123.98,299.48869701]
[1743421648874,8.0641,124.02,123.99,8.0655]
[1743421649576,8.11925058,124.02,123.99,8.12145993]
[1743421652180,8.11925058,124.02,123.99,0.05595993]
[1743421652879,8.11925058,124.02,123.99,8.12125993]
[1743421653179,8.11925058,124.02,123.99,0.05595993]
[1743421653375,0.05515058,124.02,123.99,9.54465694]
[1743421653580,0.05515058,124.02,124.0,8.0646]
[1743421654980,8.11905058,124.02,124.0,8.0646]
[1743421657686,8.11905058,124.02,123.99,8.12125993]
[1743421657883,8.11905058,124.02,123.99,0.05595993]
[1743421658182,8.11905058,124.02,124.0,8.0649]
[1743421658389,0.05515058,124.02,124.0,8.0649]
[1743421658788,8.11895058,124.02,124.0,8.0649]
[1743421660992,0.05515058,124.02,124.0,8.0649]
[1743421662787,0.05515058,124.02,123.99,9.54465694]
[1743421663888,0.05515058,124.02,124.0,8.0645]
[1743421664090,0.05515058,124.02,123.99,9.54465694]
[1743421664294,0.05515058,124.02,124.0,9.48869701]
[1743421664691,0.05515058,124.02,124.01,8.0645]
[1743421668789,0.05515058,124.02,124.01,17.55319701]
[1743421670793,11.53819701,124.08,124.01,9.48869701]
[1743421671008,41.17819701,124.08,124.03,9.48869701]
[1743421671387,8.0612,124.07,124.04,8.0622]
[1743421671792,8.0612,124.07,124.04,0.06166786]
[1743421671793,8.0615,124.06,124.04,0.06166786]
[1743421672097,9.54806191,124.07,124.04,0.06166786]
[1743421672293,9.48869701,124.06,124.04,0.06166786]
[1743421673498,8.0619,124.05,124.04,0.06166786]
[1743421673697,9.48869701,124.06,124.04,0.06166786]
[1743421674094,17.55039701,124.06,124.04,0.06166786]
[1743421674491,9.48869701,124.06,124.04,0.06166786]
[1743421674696,8.0619,124.05,124.04,0.06166786]
[1743421675500,8.0638,124.02,123.98,71.48869701]
[1743421676001,8.0638,124.02,123.99,8.0656]
[1743421676590,8.12456196,124.02,123.99,8.12621832]
[1743421677088,8.12456196,124.02,124.0,8.065]
[1743421678400,8.0645,124.01,123.99,8.12601832]
[1743421678600,0.06076196,124.02,123.99,0.06061832]
[1743421678895,8.0645,124.01,123.99,8.12601832]
[1743421681401,8.12496196,124.02,124.0,8.065]
[1743421681602,0.06076196,124.02,124.0,9.48869701]
[1743421681901,0.06076196,124.02,124.01,9.48869701]
[1743421682102,0.06076196,124.02,124.01,17.55319701]
[1743421682803,0.06076196,124.02,124.01,8.0645]
[1743421683100,0.06076196,124.02,124.0,9.48869701]
[1743421683707,0.06076196,124.02,124.01,8.0645]
[1743421684897,0.06076196,124.02,123.99,9.54931533]
[1743421686305,0.06076196,124.02,124.0,8.0651]
[1743421687207,8.12486196,124.02,123.99,17.61471533]
[1743421687404,8.12486196,124.02,123.99,0.06061832]
[1743421687905,8.12486196,124.02,124.0,8.0651]
[1743421689507,8.12486196,124.02,123.99,8.12601832]
[1743421690109,8.0646,124.01,123.99,0.06061832]
[1743421690907,8.0646,124.01,123.99,8.12631832]
[1743421692307,8.0646,124.01,124.0,8.0651]
[1743421692802,8.0646,124.01,123.99,0.06061832]
[1743421693213,8.12496196,124.02,123.99,9.54931533]
[1743421693406,0.06076196,124.02,124.0,9.48869701]
[1743421694412,8.0645,124.01,124.0,9.48869701]
[1743421694604,8.0645,124.01,123.99,79.61451533]
[1743421694805,8.0649,124.01,123.99,0.06061832]
[1743421695012,9.54945897,124.02,123.99,0.06061832]
[1743421695315,8.0651,124.0,123.99,0.06061832]
[1743421695911,17.55379701,124.0,123.99,0.06061832]
[1743421696413,47.19379701,124.0,123.99,0.06061832]
[1743421703211,8.0692,123.94,123.89,290.22]
[1743421703416,8.0692,123.94,123.91,9.48869701]
[1743421703618,9.48869701,123.95,123.9,17.55999701]
[1743421703814,8.0699,123.93,123.9,17.55999701]
[1743421704220,9.48869701,123.93,123.89,8.072]
[1743421704416,9.48869701,123.92,123.9,0.05966891]
[1743421704621,0.05624994,123.93,123.9,0.05966891]
[1743421704622,39.12869701,123.91,123.9,0.05966891]
[1743421705321,47.19969701,123.91,123.9,0.05966891]
[1743421705619,39.12869701,123.91,123.9,0.05966891]
[1743421706018,29.64,123.91,123.9,0.05966891]
[1743421712829,37.711,123.91,123.9,0.05966891]
[1743421713223,39.12869701,123.91,123.85,9.48869701]
[1743421713428,9.48869701,123.89,123.85,9.48869701]
[1743421713824,17.56129701,123.89,123.86,8.0739]
[1743421714525,0.05503378,123.89,123.87,8.0732]
[1743421714724,0.05503378,123.89,123.86,0.05874614]
[1743421715126,0.05503378,123.89,123.87,8.0733]
[1743421715929,8.12733378,123.89,123.86,8.13264614]
[1743421717030,8.12733378,123.89,123.87,8.0736]
[1743421717332,0.05503378,123.89,123.86,0.05874614]
[1743421717530,0.05503378,123.89,123.88,8.0729]
[1743421717930,0.05503378,123.89,123.86,9.54744315]
[1743421718131,0.05503378,123.89,123.87,8.0732]
[1743421719732,8.12743378,123.89,123.87,8.0732]
[1743421720134,8.12743378,123.89,123.86,8.13264614]
[1743421721424,9.48869701,123.88,123.86,0.05874614]
[1743421721836,8.0736,123.87,123.86,0.05874614]
[1743421722335,17.56229701,123.87,123.86,0.05874614]
[1743421723634,47.20189701,123.88,123.86,0.05874614]
[1743421723836,37.7132,123.88,123.86,8.13294614]
[1743421724141,8.0736,123.87,123.86,0.05874614]
[1743421724441,29.64,123.88,123.86,0.05874614]
[1743421725232,29.64,123.88,123.86,8.13294614]
[1743421726233,37.7133,123.88,123.86,8.13294614]
[1743421729143,29.64,123.88,123.86,0.05874614]
[1743421729537,37.7133,123.88,123.86,8.13274614]
[1743421729839,29.64,123.88,123.86,0.05874614]
[1743421730143,8.12763378,123.89,123.87,8.073]
[1743421731441,0.05503378,123.89,123.88,8.0729]
[1743421731941,8.12733378,123.89,123.88,8.0729]
[1743421732133,0.05503378,123.89,123.88,8.0729]
[1743421734844,0.05503378,123.89,123.86,9.54744315]
[1743421735345,0.05503378,123.89,123.87,8.0732]
[1743421735645,8.12743378,123.89,123.87,8.0732]
[1743421737847,0.05503378,123.89,123.88,8.0729]
[1743421738047,0.05503378,123.89,123.86,9.54744315]
[1743421738241,8.12733378,123.89,123.87,8.0733]
[1743421738442,0.05503378,123.89,123.86,9.54744315]
[1743421738745,0.05503378,123.89,123.87,8.0736]
[1743421738942,0.05503378,123.89,123.86,9.54744315]
[1743421739950,0.05503378,123.89,123.88,9.48869701]
[1743421740150,29.64,123.94,123.88,9.48869701]
[1743421740345,29.64,123.94,123.9,9.48869701]
[1743421740541,37.7094,123.94,123.9,9.48869701]
[1743421740745,9.48869701,123.95,123.92,8.0701]
[1743421740942,39.12869701,123.95,123.91,9.48869701]
[1743421741145,47.19739701,123.95,123.91,9.48869701]
[1743421741347,0.0525989,123.94,123.92,0.05957352]